bitfinex/quotes_BTCUSD_20251001
["timestamp","ask_amount","ask_price","bid_price","bid_amount"]
[1759320127758,6.125e-05,116780.0,116770.0,9.56272394]
[1759320127962,6.125e-05,116780.0,116770.0,9.71722107]
[1759320128178,6.125e-05,116780.0,116770.0,8.67030107]
[1759320128381,6.125e-05,116780.0,116770.0,8.33030107]
[1759320128560,6.125e-05,116780.0,116770.0,9.40745297]
[1759320128761,6.125e-05,116780.0,116770.0,9.74745297]
[1759320130254,6.125e-05,116780.0,116770.0,9.77492939]
[1759320131719,6.125e-05,116780.0,116770.0,9.83576036]
[1759320132498,6.125e-05,116780.0,116770.0,9.77492939]
[1759320132717,6.125e-05,116780.0,116770.0,9.85160313]
[1759320132919,6.125e-05,116780.0,116770.0,8.80460313]
[1759320133166,6.125e-05,116780.0,116770.0,9.85216313]
[1759320133344,6.125e-05,116780.0,116770.0,9.77548939]
[1759320133903,6.125e-05,116780.0,116770.0,9.77552939]
[1759320134801,6.125e-05,116780.0,116770.0,9.86564939]
[1759320135744,6.125e-05,116780.0,116770.0,9.58587939]
[1759320136412,6.125e-05,116780.0,116770.0,8.95518223]
[1759320136592,6.125e-05,116780.0,116770.0,9.20146223]
[1759320137003,6.125e-05,116780.0,116770.0,9.14071939]
[1759320137216,0.06947762,116840.0,116770.0,9.14071939]
[1759320137217,0.06947762,116840.0,116830.0,0.5413408]
[1759320137374,0.06947762,116840.0,116830.0,8.82369666]
[1759320137577,0.06947762,116840.0,116830.0,8.82901666]
[1759320137806,0.06947762,116840.0,116830.0,8.91840213]
[1759320138006,0.06947762,116860.0,116850.0,0.5111596]
[1759320138235,0.06947762,116860.0,116850.0,8.7574396]
[1759320138419,0.06994213,116860.0,116850.0,9.5639996]
[1759320138643,0.00046451,116860.0,116850.0,9.59147602]
[1759320139040,0.00046451,116860.0,116850.0,8.54072602]
[1759320139277,0.00046451,116860.0,116850.0,9.58820602]
[1759320139482,0.00046451,116860.0,116850.0,9.60692232]
[1759320139687,0.00046451,116860.0,116850.0,9.63707422]
[1759320139984,0.00046451,116860.0,116850.0,9.63424422]
[1759320139985,0.00258451,116860.0,116850.0,9.63424422]
[1759320140206,0.00046451,116860.0,116850.0,9.63719422]
[1759320140853,1e-08,116860.0,116850.0,9.72657969]
[1759320141062,1e-08,116860.0,116850.0,8.67897969]
[1759320141271,1e-08,116860.0,116850.0,8.65150327]
[1759320141479,1e-08,116860.0,116850.0,8.67897969]
[1759320141695,1e-08,116860.0,116850.0,9.69942327]
[1759320141952,1e-08,116860.0,116850.0,9.63789969]
[1759320142171,1e-08,116860.0,116850.0,8.67897969]
[1759320142376,1e-08,116860.0,116850.0,8.65150327]
[1759320142582,1e-08,116860.0,116850.0,8.67897969]
[1759320142788,1e-08,116860.0,116850.0,9.01509969]
[1759320143613,1e-08,116860.0,116850.0,9.05119289]
[1759320143850,1e-08,116860.0,116850.0,8.74234931]
[1759320144053,1e-08,116860.0,116850.0,8.34177099]
[1759320144261,0.00209001,116860.0,116850.0,8.1869259]
[1759320144479,1e-08,116860.0,116850.0,8.1890659]
[1759320144686,0.00209001,116860.0,116850.0,8.30340232]
[1759320144897,0.00209001,116860.0,116850.0,8.89294232]
[1759320145100,1e-08,116860.0,116850.0,8.89294232]
[1759320145311,1e-08,116860.0,116850.0,8.89614232]
[1759320145526,1e-08,116860.0,116850.0,9.01567969]
[1759320145787,1e-08,116860.0,116850.0,8.58455422]
[1759320145788,0.00519001,116860.0,116850.0,8.58455422]
[1759320145999,0.00519001,116860.0,116850.0,8.55440232]
[1759320146213,0.00519001,116860.0,116850.0,8.5269259]
[1759320146386,0.17633496,116860.0,116850.0,8.3521663]
[1759320146807,0.00519001,116860.0,116850.0,8.21440232]
[1759320146984,0.00209001,116860.0,116850.0,8.55440232]
[1759320147355,1e-08,116860.0,116850.0,8.89622232]
[1759320147739,0.00519001,116860.0,116850.0,8.6159259]
[1759320147884,0.00519001,116860.0,116850.0,8.8634859]
[1759320148094,0.17633496,116860.0,116850.0,8.8634859]
[1759320148298,0.17633496,116860.0,116850.0,8.4447663]
[1759320148503,1e-08,116860.0,116850.0,9.60304232]
[1759320148701,1e-08,116860.0,116850.0,9.60838232]
[1759320148971,1e-08,116860.0,116850.0,9.60518232]
[1759320150511,0.26572043,116860.0,116850.0,8.4607663]
[1759320150705,0.26572043,116860.0,116850.0,0.445]
[1759320150934,0.26572043,116860.0,116850.0,0.69296]
[1759320151137,0.26572043,116860.0,116840.0,0.5271737]
[1759320151138,0.26572043,116860.0,116820.0,0.33140356]
[1759320151344,0.26572043,116860.0,116840.0,0.356]
[1759320151345,0.1711596,116850.0,116840.0,0.356]
[1759320151501,0.1763496,116850.0,116840.0,0.69312]
[1759320151704,0.00209,116850.0,116840.0,0.86429425]
[1759320151907,0.17117425,116840.0,116830.0,0.17118712]
[1759320152109,0.17117425,116840.0,116830.0,9.56034712]
[1759320152110,0.17636425,116840.0,116830.0,9.56034712]
[1759320152832,0.17636425,116840.0,116830.0,8.0]
[1759320153165,0.17636425,116840.0,116830.0,9.04928]
[1759320153774,0.1711889,116830.0,116820.0,0.5162]
[1759320154005,0.1763789,116830.0,116820.0,9.2094]
[1759320154202,0.1763789,116830.0,116820.0,9.56451765]
[1759320154335,0.00209,116830.0,116820.0,9.73786121]
[1759320154559,0.17427425,116840.0,116830.0,0.1711889]
[1759320154787,0.17636425,116840.0,116830.0,0.4193889]
[1759320155125,0.17636425,116840.0,116830.0,0.2482]
[1759320155482,0.17636425,116840.0,116830.0,0.6932]
[1759320156981,0.1882022,116860.0,116840.0,0.17117228]
[1759320156982,0.1913022,116860.0,116840.0,0.17117228]
[1759320157250,0.00209,116850.0,116840.0,0.17117228]
[1759320157448,0.00209,116850.0,116840.0,0.41921228]
[1759320158787,1e-08,116860.0,116850.0,0.5111596]
[1759320158993,1e-08,116860.0,116850.0,8.5422156]
[1759320159215,1e-08,116860.0,116850.0,8.5390156]
[1759320159352,0.17633496,116860.0,116850.0,8.1711596]
[1759320159770,0.17633496,116860.0,116850.0,8.8643196]
[1759320159965,0.17633496,116860.0,116850.0,8.24816]
[1759320160168,0.01006384,116860.0,116850.0,8.8664196]
[1759320160376,1e-08,116860.0,116850.0,9.2397715]
[1759320160852,1e-08,116860.0,116850.0,9.5624196]
[1759320161456,1e-08,116860.0,116850.0,9.5881356]
[1759320161862,1e-08,116860.0,116850.0,9.6214875]
[1759320162727,1e-08,116860.0,116850.0,9.3733675]
[1759320162935,1e-08,116860.0,116850.0,8.5132996]
[1759320163144,1e-08,116860.0,116850.0,9.5624196]
[1759320164072,1e-08,116860.0,116850.0,9.5656196]
[1759320164533,1e-08,116860.0,116850.0,8.8982156]
[1759320164750,1e-08,116860.0,116850.0,8.5422156]
[1759320164958,1e-08,116860.0,116850.0,9.5912556]
[1759320165607,1e-08,116860.0,116850.0,8.5422156]
[1759320165902,1e-08,116860.0,116850.0,9.5912156]
[1759320166564,1e-08,116860.0,116850.0,9.6212475]
[1759320166790,1e-08,116860.0,116850.0,9.38638908]
[1759320167003,1e-08,116860.0,116850.0,8.94150908]
[1759320167215,0.00209001,116860.0,116850.0,8.93826908]
[1759320167441,0.00209001,116860.0,116850.0,9.35747308]
[1759320167655,1e-08,116860.0,116850.0,9.35747308]
[1759320167857,0.00209001,116860.0,116850.0,9.32728118]
[1759320168272,1e-08,116860.0,116850.0,9.32728118]
[1759320168764,1e-08,116860.0,116850.0,9.33048118]
[1759320169474,0.00519001,116860.0,116850.0,8.63226118]
[1759320169676,0.01317367,116860.0,116850.0,9.32514118]
[1759320169886,0.01317367,116860.0,116850.0,9.32728118]
[1759320169887,0.00798367,116860.0,116850.0,9.32728118]
[1759320170092,0.00798367,116860.0,116850.0,9.33048118]
[1759320170272,0.00798367,116860.0,116850.0,9.35619718]
[1759320171562,0.00798367,116860.0,116850.0,9.26719718]
[1759320171767,0.00798367,116860.0,116850.0,9.35615718]
[1759320172168,0.0079891,116860.0,116850.0,9.38630908]
[1759320172393,1e-08,116860.0,116850.0,9.38630908]
[1759320173577,1e-08,116860.0,116850.0,9.38626908]
[1759320174464,1e-08,116860.0,116850.0,9.47565455]
[1759320174991,1e-08,116860.0,116850.0,9.53834374]
[1759320176269,1e-08,116860.0,116850.0,8.48958374]
[1759320176486,1e-08,116860.0,116850.0,9.53818374]
[1759320177625,1e-08,116860.0,116850.0,8.48958374]
[1759320177862,1e-08,116860.0,116850.0,9.53826374]
[1759320178074,1e-08,116860.0,116850.0,9.42358774]
[1759320178286,1e-08,116860.0,116850.0,9.51254774]
[1759320178643,1e-08,116860.0,116850.0,9.53826374]
[1759320178844,1e-08,116860.0,116850.0,9.53818374]
[1759320179362,1e-08,116860.0,116850.0,9.44918374]
[1759320179563,1e-08,116860.0,116850.0,8.48958374]
[1759320179763,1e-08,116860.0,116850.0,8.46386774]
[1759320179968,0.00199001,116860.0,116850.0,9.50922774]
[1759320180397,1e-08,116860.0,116850.0,8.81658774]
[1759320180598,0.00199001,116860.0,116850.0,8.27844118]
[1759320180918,0.00511001,116860.0,116850.0,9.32486118]
[1759320181119,1e-08,116860.0,116850.0,9.32694118]
[1759320181515,1e-08,116860.0,116850.0,9.32995118]
[1759320181706,1e-08,116860.0,116850.0,8.28139118]
[1759320182027,1e-08,116860.0,116850.0,9.35265718]
[1759320182602,1e-08,116860.0,116850.0,9.35566718]
[1759320183112,1e-08,116860.0,116850.0,9.35265718]
[1759320183314,1e-08,116860.0,116850.0,9.35566718]
[1759320183510,1e-08,116860.0,116850.0,9.35570718]
[1759320183902,1e-08,116860.0,116850.0,9.35566718]
[1759320184099,1e-08,116860.0,116850.0,9.38581908]
[1759320184341,1e-08,116860.0,116850.0,9.47520455]
[1759320185240,0.11021969,116890.0,116880.0,0.17111567]
[1759320185445,0.10435424,116890.0,116880.0,0.5063147]
[1759320186360,0.11234908,116890.0,116880.0,0.26007567]
[1759320186821,0.37283558,116890.0,116880.0,0.025716]
[1759320187049,0.17112853,116880.0,116860.0,0.51968898]
[1759320187276,0.26850884,116880.0,116870.0,8.0]
[1759320187496,0.27049884,116880.0,116870.0,8.0]
[1759320187861,0.27049884,116880.0,116870.0,8.69244]
[1759320188091,0.27049884,116880.0,116870.0,0.69244]
[1759320188092,0.28217462,116880.0,116870.0,0.69244]
[1759320189897,0.17114495,116860.0,116850.0,0.51971626]
[1759320190121,0.00199,116860.0,116850.0,9.56811626]
[1759320190345,0.00199,116860.0,116850.0,9.59591226]
[1759320191204,0.00312,116870.0,116860.0,0.17114495]
[1759320191430,0.27218978,116880.0,116860.0,0.17322495]
[1759320191688,0.00199,116870.0,116860.0,0.51322495]
[1759320191917,0.00199,116870.0,116860.0,0.76078495]
[1759320192105,0.27218978,116880.0,116860.0,0.76078495]
[1759320192106,0.27218978,116880.0,116870.0,0.17113031]
[1759320192347,0.27218978,116880.0,116870.0,0.18824334]
[1759320192348,0.01112622,116880.0,116870.0,0.18824334]
[1759320192588,0.28202032,116890.0,116880.0,0.17111567]
[1759320192817,0.17310567,116880.0,116870.0,0.34]
[1759320193050,0.17622567,116880.0,116870.0,0.6924]
[1759320193266,0.17622567,116880.0,116870.0,0.86353031]
[1759320193740,0.17113031,116870.0,116860.0,0.87562219]
[1759320193958,0.17312031,116870.0,116860.0,8.51970219]
[1759320194180,0.17624031,116870.0,116860.0,9.12342219]
[1759320194397,0.17624031,116870.0,116860.0,9.56830219]
[1759320194622,0.17624031,116870.0,116860.0,8.51970219]
[1759320194835,0.17624031,116870.0,116860.0,9.56830219]
[1759320195054,0.17312031,116870.0,116860.0,8.52178219]
[1759320195279,0.26362114,116880.0,116860.0,8.52178219]
[1759320195280,0.00312,116880.0,116870.0,0.17113031]
[1759320195483,0.17622787,116880.0,116870.0,0.17113031]
[1759320195962,0.00511,116880.0,116870.0,0.17113031]
[1759320196420,0.00199,116880.0,116870.0,0.19032334]
[1759320196640,0.00199,116880.0,116870.0,0.17321031]
[1759320196906,0.17310567,116880.0,116870.0,0.17321031]
[1759320197090,0.26561114,116880.0,116870.0,0.69272]
[1759320198458,0.17113031,116870.0,116860.0,0.51970219]
[1759320198692,0.17113031,116870.0,116860.0,9.57030219]
[1759320199572,0.17325031,116870.0,116860.0,8.52178219]
[1759320199694,0.17325031,116870.0,116860.0,9.57026219]
[1759320199889,0.00212,116870.0,116860.0,9.57026219]
[1759320201666,0.26362114,116880.0,116870.0,0.17113031]
[1759320201879,0.26577114,116880.0,116870.0,0.17113031]
[1759320202294,0.09465547,116880.0,116870.0,0.17113031]
[1759320202500,0.09153547,116880.0,116870.0,0.17317031]
[1759320202965,0.27338527,116890.0,116880.0,0.67111567]
[1759320203230,0.37292801,116890.0,116870.0,0.86357031]
[1759320203412,0.17111567,116880.0,116870.0,0.86357031]
[1759320203664,0.17326567,116880.0,116870.0,8.86357031]
[1759320203908,0.00215,116880.0,116870.0,8.86357031]
[1759320204351,0.17326567,116880.0,116870.0,8.86561031]
[1759320205038,0.00215,116880.0,116870.0,8.86561031]
[1759320205666,0.17326567,116880.0,116870.0,8.86561031]
[1759320206815,0.17630567,116880.0,116870.0,8.0]
[1759320207025,0.26569114,116880.0,116870.0,0.44488]
[1759320207270,0.26569114,116880.0,116840.0,0.24341325]
[1759320207481,0.26569114,116880.0,116850.0,9.47039758]
[1759320207482,0.17115205,116860.0,116850.0,9.47039758]
[1759320207694,0.17330205,116860.0,116850.0,9.56139758]
[1759320208052,0.17330205,116860.0,116850.0,8.51319758]
[1759320208263,0.17634205,116860.0,116850.0,9.55935758]
[1759320209232,0.26572752,116860.0,116850.0,9.1408]
[1759320209423,0.26572752,116860.0,116850.0,9.5593596]
[1759320209861,0.26572752,116860.0,116850.0,9.1144396]
[1759320210064,0.26572752,116860.0,116850.0,9.5593196]
[1759320210861,0.26572752,116860.0,116850.0,9.5592796]
[1759320211725,0.09457547,116860.0,116850.0,9.5592796]
[1759320213358,0.09457547,116860.0,116850.0,9.5613196]
[1759320213359,0.09153547,116860.0,116850.0,9.5613196]
[1759320213704,0.09153547,116860.0,116850.0,9.59017788]
[1759320214653,0.17111567,116880.0,116870.0,0.17113031]
[1759320214842,0.17111567,116880.0,116870.0,0.42033031]
[1759320214843,0.26265114,116880.0,116870.0,0.42033031]
[1759320214991,0.26569114,116880.0,116870.0,0.41829031]
[1759320216266,0.26569114,116880.0,116870.0,0.44714859]
[1759320216596,0.09153547,116880.0,116870.0,0.44918859]
[1759320216731,0.09153547,116880.0,116870.0,0.44714859]
[1759320217279,0.09153547,116880.0,116870.0,0.44918859]
[1759320217714,0.27890032,116890.0,116880.0,0.17111567]
[1759320217880,0.00215,116880.0,116870.0,0.44714859]
[1759320218142,0.26569114,116880.0,116870.0,0.959]
[1759320218331,0.26569114,116880.0,116870.0,0.86309031]
[1759320218974,0.26569114,116880.0,116870.0,0.17113031]
[1759320219101,0.26569114,116880.0,116870.0,0.86309031]
[1759320219716,0.09457547,116880.0,116870.0,0.86309031]
[1759320220334,0.26569114,116880.0,116870.0,0.86309031]
[1759320223017,0.09457547,116880.0,116870.0,0.86309031]
[1759320223779,0.26569114,116880.0,116870.0,0.86309031]
[1759320224289,0.26569114,116880.0,116860.0,0.51967609]
[1759320224480,0.26569114,116880.0,116870.0,8.0]
[1759320224694,0.26569114,116880.0,116870.0,8.69168]
[1759320224896,0.26569114,116880.0,116870.0,0.86281031]
[1759320225465,0.26569114,116880.0,116870.0,0.17113031]
[1759320225684,0.26569114,116880.0,116870.0,0.86281031]
[1759320225799,0.26569114,116880.0,116870.0,0.41793031]
[1759320226032,0.26569114,116880.0,116870.0,0.86281031]
[1759320227158,0.17113031,116870.0,116860.0,0.17111885]
[1759320227365,0.26354114,116880.0,116870.0,0.94488]
[1759320227578,0.26569114,116880.0,116870.0,0.44488]
[1759320227781,0.26569114,116880.0,116870.0,0.6916]
[1759320228197,0.26265114,116880.0,116870.0,0.00204]
[1759320228343,0.26265114,116880.0,116870.0,0.50204]
[1759320228562,0.26569114,116880.0,116870.0,1.1916]
[1759320228743,0.26569114,116880.0,116870.0,0.6916]
[1759320228944,0.26569114,116880.0,116870.0,0.86273031]
[1759320229616,0.26569114,116880.0,116860.0,0.17111885]
[1759320229862,0.26569114,116880.0,116870.0,9.19156]
[1759320230034,0.26050114,116880.0,116870.0,0.86767031]
[1759320230604,0.26260114,116880.0,116870.0,0.86473031]
[1759320230819,0.09148547,116880.0,116870.0,0.86269031]
[1759320231399,0.26565114,116880.0,116870.0,0.86269031]
[1759320231781,0.26260114,116880.0,116870.0,0.86479031]
[1759320232454,0.26565114,116880.0,116870.0,0.86269031]
[1759320232662,0.26260114,116880.0,116870.0,0.86479031]
[1759320233335,0.26565114,116880.0,116870.0,0.86269031]
[1759320233561,0.26260114,116880.0,116870.0,0.86479031]
[1759320233776,0.26260114,116880.0,116870.0,0.86269031]
[1759320233985,0.26565114,116880.0,116870.0,0.86269031]
[1759320234483,0.26260114,116880.0,116870.0,0.86479031]
[1759320234672,0.26260114,116880.0,116870.0,0.61601031]
[1759320234902,0.26565114,116880.0,116870.0,0.61601031]
[1759320235086,0.26260114,116880.0,116870.0,0.61811031]
[1759320235486,0.26260114,116880.0,116870.0,0.61601031]
[1759320235632,0.26565114,116880.0,116870.0,0.61601031]
[1759320235845,0.26565114,116880.0,116870.0,0.86249031]
[1759320236415,0.08938547,116880.0,116870.0,0.86459031]
[1759320236570,0.26050114,116880.0,116870.0,0.86459031]
[1759320236772,0.26260114,116880.0,116870.0,0.86459031]
[1759320237201,0.26565114,116880.0,116870.0,0.86459031]
[1759320237416,0.26565114,116880.0,116870.0,0.86249031]
[1759320237967,0.26565114,116880.0,116870.0,0.86459031]
[1759320238162,0.26565114,116880.0,116870.0,0.17113031]
[1759320238448,0.26565114,116880.0,116870.0,0.86241031]
[1759320239436,0.26565114,116880.0,116860.0,0.1222268]
[1759320239639,0.26260114,116880.0,116870.0,9.10216]
[1759320239854,0.26565114,116880.0,116870.0,0.69112]
[1759320240564,0.17113031,116870.0,116860.0,0.86706495]
[1759320240776,0.17114495,116860.0,116850.0,0.86707541]
[1759320241046,0.17114495,116860.0,116850.0,8.0]
[1759320241047,0.17629495,116860.0,116850.0,8.0]
[1759320241249,0.17629495,116860.0,116840.0,0.53565099]
[1759320241250,0.1711596,116850.0,116840.0,0.53565099]
[1759320241458,0.1732596,116850.0,116840.0,9.22685099]
[1759320241669,0.1763096,116850.0,116840.0,8.53565099]
[1759320241879,0.26569507,116850.0,116840.0,8.0]
[1759320242097,0.2737061,116850.0,116840.0,0.69116]
[1759320242313,0.1711889,116830.0,116820.0,0.37103765]
[1759320242520,0.17422425,116840.0,116820.0,0.79070121]
[1759320242715,0.26360972,116840.0,116820.0,9.23558121]
[1759320242918,0.17985682,116850.0,116830.0,8.18830779]
[1759320243118,0.27229229,116850.0,116840.0,8.2464]
[1759320243320,0.27229229,116850.0,116840.0,0.2464]
[1759320243546,0.27439229,116850.0,116840.0,0.2464]
[1759320243728,0.17117425,116840.0,116820.0,0.22373966]
[1759320244030,0.17422425,116840.0,116830.0,9.24736718]
[1759320244271,0.17632425,116840.0,116830.0,9.24736718]
[1759320244481,0.17327425,116840.0,116830.0,9.24946718]
[1759320244976,0.26924229,116850.0,116840.0,0.17117425]
[1759320245156,0.27134229,116850.0,116830.0,1.2216089]
[1759320245371,0.27439229,116850.0,116840.0,8.02885828]
[1759320245580,0.27439229,116850.0,116840.0,0.02885828]
[1759320246233,0.27439229,116850.0,116840.0,0.20003253]
[1759320246234,0.27134229,116850.0,116840.0,0.20003253]
[1759320246661,0.27134229,116850.0,116840.0,0.02885828]
[1759320246843,0.27439229,116850.0,116840.0,0.02885828]
[1759320248189,0.26924229,116850.0,116840.0,0.20213253]
[1759320248330,0.00013924,116850.0,116840.0,0.20523253]
[1759320248548,0.17129884,116850.0,116840.0,1.24933253]
[1759320248984,0.17129884,116850.0,116840.0,1.22047425]
[1759320249395,0.17339884,116850.0,116840.0,1.22067425]
[1759320249845,0.26278431,116850.0,116840.0,0.0021]
[1759320250056,0.17117425,116840.0,116830.0,0.356]
[1759320250182,0.17327425,116840.0,116830.0,9.2206489]
[1759320250616,0.17632425,116840.0,116830.0,9.2206489]
[1759320251037,0.17632425,116840.0,116830.0,8.1732889]
[1759320251274,0.17632425,116840.0,116830.0,8.7756089]
[1759320251480,0.17632425,116840.0,116830.0,9.2206089]
[1759320251706,0.17327425,116840.0,116830.0,9.2206089]
[1759320251903,0.17632425,116840.0,116830.0,9.1295089]
[1759320252103,0.17327425,116840.0,116830.0,9.2206089]
[1759320252358,0.17117425,116840.0,116830.0,9.24946718]
[1759320252619,0.17327425,116840.0,116830.0,8.20214718]
[1759320252802,0.17327425,116840.0,116830.0,9.24732718]
[1759320253011,0.17632425,116840.0,116830.0,9.24732718]
[1759320254153,0.17632425,116840.0,116830.0,8.80228718]
[1759320254362,0.17632425,116840.0,116830.0,9.24728718]
[1759320254567,0.17632425,116840.0,116830.0,8.20004718]
[1759320254777,0.17632425,116840.0,116830.0,9.24728718]
[1759320255015,0.17632425,116840.0,116830.0,8.9582]
[1759320255223,0.26570972,116840.0,116830.0,9.0472]
[1759320256055,0.26570972,116840.0,116830.0,8.6912]
[1759320256758,0.26570972,116840.0,116830.0,8.0]
[1759320256959,0.26570972,116840.0,116830.0,8.6912]
[1759320257860,0.26570972,116840.0,116830.0,8.0]
[1759320258140,0.26570972,116840.0,116830.0,8.445]
[1759320258283,0.26570972,116840.0,116830.0,0.69112]
[1759320258489,0.1711889,116830.0,116820.0,0.01511765]
[1759320258699,0.26362437,116830.0,116820.0,8.69112]
[1759320258900,0.26572437,116830.0,116820.0,8.69112]
[1759320259348,0.26572437,116830.0,116820.0,8.0]
[1759320259549,0.26572437,116830.0,116820.0,8.69112]
[1759320259950,0.26572437,116830.0,116820.0,0.69112]
[1759320261350,0.17120356,116820.0,116810.0,0.17121821]
[1759320261552,0.26263903,116820.0,116810.0,0.80108]
[1759320261771,0.26263903,116820.0,116810.0,1.22044821]
[1759320262248,0.26263903,116820.0,116810.0,1.26233241]
[1759320262454,0.26058903,116820.0,116810.0,1.26233241]
[1759320262863,0.26263903,116820.0,116810.0,1.26233241]
[1759320263069,0.26587903,116820.0,116810.0,1.0890042]
[1759320263457,0.26263903,116820.0,116810.0,1.0911142]
[1759320263732,0.26263903,116820.0,116810.0,0.21521241]
[1759320263948,0.26058903,116820.0,116810.0,0.21521241]
[1759320264150,0.26263903,116820.0,116810.0,1.26253241]
[1759320264718,0.26263903,116820.0,116810.0,0.21521241]
[1759320264928,0.26263903,116820.0,116810.0,1.26249241]
[1759320265548,0.26587903,116820.0,116810.0,1.26249241]
[1759320265727,0.26587903,116820.0,116810.0,1.26038241]
[1759320266146,0.26263903,116820.0,116810.0,1.26249241]
[1759320266777,0.26263903,116820.0,116810.0,1.0891642]
[1759320266978,0.26587903,116820.0,116810.0,0.44504]
[1759320267406,0.17121821,116810.0,116800.0,0.35319181]
[1759320267623,0.26589368,116810.0,116800.0,8.45823181]
[1759320267896,0.26589368,116810.0,116800.0,0.45823181]
[1759320268122,0.26589368,116810.0,116800.0,0.70439181]
[1759320268354,0.27389048,116810.0,116800.0,0.70439181]
[1759320268596,0.27389048,116810.0,116800.0,0.70485632]
[1759320269093,0.27389048,116810.0,116800.0,0.01365632]
[1759320269336,0.27389048,116810.0,116800.0,0.70485632]
[1759320273401,0.27388793,116810.0,116800.0,0.70485632]
[1759320276578,0.17123287,116800.0,116790.0,0.1977005]
[1759320276762,0.26266834,116800.0,116790.0,8.6449305]
[1759320277542,0.26266834,116800.0,116790.0,8.8907705]
[1759320278517,0.26266834,116800.0,116790.0,9.2468905]
[1759320278717,0.08938547,116800.0,116790.0,9.2468905]
[1759320279047,0.17121821,116810.0,116800.0,0.17123287]
[1759320279256,0.17123287,116800.0,116790.0,0.56706501]
[1759320279465,0.18451494,116800.0,116790.0,9.23193159]
[1759320279689,0.18451494,116800.0,116790.0,8.01324451]
[1759320279889,0.18451494,116800.0,116790.0,9.06068451]
[1759320280254,0.18451494,116800.0,116790.0,9.23193204]
[1759320280677,0.18451494,116800.0,116790.0,9.14293204]
[1759320280881,0.18451494,116800.0,116790.0,9.23193204]
[1759320281352,0.27390041,116800.0,116790.0,0.81448451]
[1759320281561,0.27390041,116800.0,116790.0,1.06072451]
[1759320282370,0.27390041,116800.0,116790.0,1.23197204]
[1759320283176,0.27390041,116800.0,116790.0,1.25842546]
[1759320283377,0.27390041,116800.0,116790.0,0.21094546]
[1759320283711,0.27390041,116800.0,116790.0,1.26026546]
[1759320284195,0.27390041,116800.0,116790.0,0.03969793]
[1759320284410,0.27390041,116800.0,116790.0,1.08893793]
[1759320284962,0.27390041,116800.0,116790.0,0.84093793]
[1759320285169,0.27390041,116800.0,116790.0,1.08893793]
[1759320285576,0.27390041,116800.0,116790.0,0.03969793]
[1759320285795,0.27390041,116800.0,116790.0,0.44512]
[1759320285996,0.27390041,116800.0,116790.0,0.63656]
[1759320286324,0.1712622,116780.0,116770.0,0.87599364]
[1759320286452,0.1765522,116780.0,116770.0,8.34004644]
[1759320286716,0.1765522,116780.0,116770.0,9.38932644]
[1759320286926,0.26593767,116780.0,116770.0,8.80140644]
[1759320287133,0.27393909,116780.0,116770.0,8.00004644]
[1759320287333,0.27393909,116780.0,116770.0,9.07203364]
[1759320288287,0.26864909,116780.0,116770.0,9.2454205]
[1759320288469,0.26864909,116780.0,116770.0,9.07414364]
[1759320288911,0.27069909,116780.0,116770.0,9.07414364]
[1759320289148,0.27393909,116780.0,116770.0,8.04924706]
[1759320289370,0.27393909,116780.0,116770.0,9.26992392]
[1759320289598,0.27069909,116780.0,116770.0,9.10075706]
[1759320290051,0.27393909,116780.0,116770.0,8.04924706]
[1759320290239,0.27393909,116780.0,116770.0,9.09860706]
[1759320290951,0.27393909,116780.0,116770.0,9.00948706]
[1759320291159,0.27393909,116780.0,116770.0,9.09852706]
[1759320291810,0.27393909,116780.0,116770.0,8.04924706]
[1759320292030,0.27393909,116780.0,116770.0,1.07203364]
[1759320292247,0.27393909,116780.0,116770.0,0.02279364]
[1759320292915,0.27393909,116780.0,116770.0,0.71587364]
[1759320295906,0.27393665,116780.0,116770.0,0.71587364]
[1759320296292,0.27393665,116780.0,116770.0,0.02279364]
[1759320296498,0.27393665,116780.0,116770.0,0.71571364]
[1759320299486,0.27393665,116780.0,116770.0,0.69284644]
[1759320299904,0.27393665,116780.0,116770.0,4.644e-05]
[1759320300126,0.27393665,116780.0,116770.0,0.69284644]
[1759320301333,0.32393665,116780.0,116770.0,0.69284644]
[1759320302603,0.32393665,116780.0,116770.0,0.71655232]
[1759320303018,0.32393665,116780.0,116770.0,0.27111232]
[1759320303226,0.32393665,116780.0,116770.0,0.71639232]
[1759320304515,0.31864665,116780.0,116770.0,0.74486574]
[1759320304718,0.31864665,116780.0,116770.0,0.74796574]
[1759320304928,0.26864665,116780.0,116770.0,0.74796574]
[1759320305137,0.26864665,116780.0,116770.0,0.74486574]
[1759320305544,0.26864665,116780.0,116770.0,0.74796574]
[1759320305699,0.26864665,116780.0,116770.0,0.74486574]
[1759320305908,0.27076665,116780.0,116770.0,0.74486574]
[1759320306339,0.27380665,116780.0,116770.0,0.65380574]
[1759320306537,0.26864665,116780.0,116770.0,0.74486574]
[1759320306916,0.26864665,116780.0,116770.0,0.9161426]
[1759320307311,0.26864665,116780.0,116770.0,0.74486574]
[1759320307523,0.26864665,116780.0,116770.0,0.9192426]
[1759320308112,0.09738445,116780.0,116770.0,0.9192426]
[1759320308320,0.58673265,116790.0,116780.0,0.1712622]
[1759320308527,0.68411788,116790.0,116780.0,0.20081562]
[1759320308734,0.63411788,116790.0,116780.0,0.19973562]
[1759320309601,0.68410476,116790.0,116780.0,0.20283562]
[1759320310138,0.68410476,116790.0,116780.0,0.19973562]
[1759320310337,0.68410476,116790.0,116780.0,1.24849562]
[1759320311256,0.42347176,116790.0,116780.0,1.25159562]
[1759320311477,0.415472,116790.0,116780.0,8.20283562]
[1759320311769,0.58671953,116790.0,116780.0,9.05082]
[1759320312013,0.58671953,116790.0,116780.0,9.2220822]
[1759320312808,0.58883953,116790.0,116780.0,8.7768022]
[1759320313019,0.58883953,116790.0,116780.0,9.2220822]
[1759320313489,0.415472,116790.0,116780.0,9.2220822]
[1759320313689,0.415472,116790.0,116780.0,9.59163562]
[1759320315369,0.58671953,116790.0,116780.0,9.5619222]
[1759320315680,0.58671953,116790.0,116780.0,8.5132822]
[1759320315882,0.58671953,116790.0,116780.0,9.5618422]
[1759320316086,0.58883953,116790.0,116780.0,9.5618422]
[1759320316281,0.58883953,116790.0,116780.0,8.34202]
[1759320316489,0.58883953,116790.0,116780.0,9.39058]
[1759320316856,0.58883953,116790.0,116780.0,9.5618422]
[1759320317119,0.58883953,116790.0,116780.0,8.34202]
[1759320317479,0.678225,116790.0,116780.0,8.35822]
[1759320317692,0.681265,116790.0,116770.0,0.02375232]
[1759320317911,0.681265,116790.0,116780.0,9.19228]
[1759320318130,0.681265,116790.0,116780.0,0.69228]
[1759320318359,0.17132345,116780.0,116770.0,0.8912258]
[1759320318606,0.17344345,116780.0,116770.0,9.3384858]
[1759320318840,0.26586892,116780.0,116770.0,9.16519232]
[1759320319072,0.26586892,116780.0,116770.0,8.82519232]
[1759320319321,0.08944672,116780.0,116770.0,9.00149918]
[1759320319540,0.08944672,116780.0,116770.0,9.24849918]
[1759320319761,0.08944672,116780.0,116770.0,9.2749526]
[1759320320396,0.26070892,116780.0,116770.0,9.2749526]